bitfinex/quotes_BTCUSD_20241022
["timestamp","ask_amount","ask_price","bid_price","bid_amount"]
[1729625069387,0.000839,67533.0,67532.0,0.48937242]
[1729625069618,0.000839,67533.0,67532.0,0.82523157]
[1729625073908,0.000839,67533.0,67532.0,0.82023157]
[1729625074154,0.000839,67533.0,67532.0,0.82523157]
[1729625075304,0.000839,67533.0,67532.0,0.58784949]
[1729625075528,0.000839,67533.0,67532.0,0.70404053]
[1729625076421,0.000839,67533.0,67532.0,0.69904053]
[1729625077387,0.000839,67533.0,67532.0,0.69404053]
[1729625077811,0.000839,67533.0,67532.0,0.69904053]
[1729625080684,0.000839,67533.0,67532.0,0.58284949]
[1729625080931,0.000839,67533.0,67532.0,0.52714053]
[1729625081809,0.000839,67533.0,67532.0,0.52214053]
[1729625082040,0.000839,67533.0,67532.0,0.52714053]
[1729625082287,0.000839,67533.0,67532.0,0.52214053]
[1729625082505,0.000839,67533.0,67532.0,0.52714053]
[1729625082948,0.000839,67533.0,67532.0,0.52214053]
[1729625083398,0.000839,67533.0,67532.0,0.52714053]
[1729625083618,0.000839,67533.0,67532.0,0.52214053]
[1729625083882,0.000839,67533.0,67532.0,0.40594949]
[1729625084858,0.000839,67533.0,67532.0,0.153077]
[1729625085329,0.01099104,67533.0,67532.0,0.153077]
[1729625085547,0.000839,67533.0,67532.0,0.153077]
[1729625086005,0.000839,67533.0,67532.0,0.15699034]
[1729625086213,0.000839,67533.0,67532.0,0.148077]
[1729625086665,0.000839,67533.0,67532.0,0.348077]
[1729625086895,0.01098268,67533.0,67532.0,0.353077]
[1729625087114,0.000839,67533.0,67532.0,0.353077]
[1729625089502,0.000839,67533.0,67532.0,0.348077]
[1729625089914,0.36284869,67533.0,67532.0,0.2]
[1729625090126,0.49853352,67533.0,67532.0,0.2]
[1729625090524,0.64749267,67533.0,67532.0,0.2]
[1729625090744,0.64949267,67533.0,67532.0,0.2]
[1729625091212,0.77416954,67533.0,67532.0,0.2]
[1729625092104,0.80216954,67533.0,67532.0,0.2]
[1729625092323,0.67549267,67533.0,67532.0,0.2]
[1729625092449,0.65249267,67533.0,67532.0,0.2]
[1729625093107,0.65449267,67533.0,67532.0,0.2]
[1729625099946,0.67749267,67533.0,67532.0,0.2]
[1729625101557,0.82172914,67533.0,67532.0,0.2]
[1729625101792,0.52007138,67525.0,67524.0,0.001652]
[1729625102078,0.70072586,67525.0,67524.0,0.001652]
[1729625104324,0.231026,67510.0,67505.0,0.001652]
[1729625104529,0.39751519,67510.0,67505.0,0.001652]
[1729625104734,0.25940609,67510.0,67505.0,0.001652]
[1729625104951,0.005,67508.0,67505.0,0.001652]
[1729625105170,0.16848919,67507.0,67505.0,0.001652]
[1729625105394,0.04075301,67506.0,67505.0,0.001652]
[1729625105616,0.05075411,67506.0,67505.0,0.001652]
[1729625106315,0.0100011,67506.0,67505.0,0.001652]
[1729625106763,0.0120011,67506.0,67505.0,0.001652]
[1729625107007,0.1601351,67506.0,67505.0,0.001652]
[1729625107258,0.68068344,67506.0,67505.0,0.001652]
[1729625107710,0.51219425,67506.0,67505.0,0.001652]
[1729625107932,0.6611534,67506.0,67505.0,0.001652]
[1729625113514,0.0150011,67506.0,67505.0,0.001652]
[1729625113739,0.1701351,67506.0,67505.0,0.007652]
[1729625117834,0.31909425,67506.0,67505.0,0.007652]
[1729625118103,0.78598344,67506.0,67505.0,0.007652]
[1729625118295,0.51812338,67501.0,67500.0,0.001652]
[1729625118547,0.84448253,67501.0,67500.0,0.001652]
[1729625118798,0.8543048,67501.0,67500.0,0.001652]
[1729625121383,0.183148,67500.0,67499.0,1e-08]
[1729625121609,0.60467826,67500.0,67499.0,1e-08]
[1729625121817,0.69567826,67500.0,67499.0,1e-08]
[1729625122029,0.70545832,67500.0,67499.0,1e-08]
[1729625122507,0.80545832,67500.0,67499.0,1e-08]
[1729625127424,0.81075648,67500.0,67499.0,1e-08]
[1729625129369,0.833954,67500.0,67499.0,1e-08]
[1729625135806,0.83478,67500.0,67499.0,1e-08]
[1729625136279,0.67571866,67500.0,67499.0,1e-08]
[1729625136512,0.82386666,67500.0,67499.0,1e-08]
[1729625144432,1.03983792,67500.0,67499.0,1e-08]
[1729625144661,0.89087877,67500.0,67499.0,1e-08]
[1729625144897,0.0851137,67500.0,67499.0,1e-08]
[1729625145138,0.03380358,67500.0,67499.0,1e-08]
[1729625145379,0.18195158,67500.0,67499.0,1e-08]
[1729625145619,0.26673969,67500.0,67499.0,1e-08]
[1729625146343,0.31295003,67500.0,67499.0,1e-08]
[1729625146568,0.16480203,67500.0,67499.0,1e-08]
[1729625146799,0.01060606,67500.0,67499.0,0.08100001]
[1729625147025,0.01060606,67500.0,67499.0,0.32575001]
[1729625147245,0.000826,67500.0,67499.0,0.32575001]
[1729625148786,0.00899098,67500.0,67499.0,0.32575001]
[1729625149025,0.000826,67500.0,67499.0,0.32575001]
[1729625149492,0.0090007,67500.0,67499.0,0.32575001]
[1729625149712,0.000826,67500.0,67499.0,0.32575001]
[1729625149937,0.0090007,67500.0,67499.0,0.32575001]
[1729625150152,0.000826,67500.0,67499.0,0.32575001]
[1729625150371,0.0090007,67500.0,67499.0,0.32575001]
[1729625150601,0.000826,67500.0,67499.0,0.17760001]
[1729625150836,0.0090007,67500.0,67499.0,0.17760001]
[1729625152204,0.1571487,67500.0,67499.0,0.17760001]
[1729625153337,0.0090007,67500.0,67499.0,0.17760001]
[1729625154062,0.1571487,67500.0,67499.0,0.17760001]
[1729625154519,0.0090007,67500.0,67499.0,0.17760001]
[1729625154759,0.16867181,67504.0,67499.0,0.17760001]
[1729625155004,0.42487273,67549.0,67499.0,0.17760001]
[1729625155005,4e-05,67550.0,67538.0,0.1]
[1729625155241,4e-05,67550.0,67543.0,0.148052]
[1729625155476,4e-05,67550.0,67540.0,0.005]
[1729625155691,4e-05,67550.0,67539.0,0.148061]
[1729625155975,4e-05,67550.0,67539.0,0.296125]
[1729625156208,4e-05,67550.0,67541.0,0.148057]
[1729625156430,4e-05,67550.0,67542.0,0.148055]
[1729625156938,4e-05,67550.0,67538.0,0.005]
[1729625157162,4e-05,67550.0,67539.0,0.296124]
[1729625157409,4e-05,67550.0,67542.0,0.148054]
[1729625157663,4e-05,67550.0,67544.0,0.148051]
[1729625157878,4e-05,67550.0,67542.0,0.148054]
[1729625158123,4e-05,67550.0,67543.0,0.148052]
[1729625158350,4e-05,67550.0,67544.0,0.148051]
[1729625158574,4e-05,67550.0,67540.0,0.29612]
[1729625158805,0.000866,67550.0,67540.0,0.29612]
[1729625159270,0.000866,67550.0,67543.0,0.148052]
[1729625159511,0.000866,67550.0,67543.0,0.296107]
[1729625159748,0.000866,67550.0,67545.0,0.148048]
[1729625159974,0.000866,67550.0,67538.0,0.005]
[1729625159975,0.000866,67550.0,67539.0,0.296124]
[1729625160224,0.000866,67550.0,67540.0,0.29612]
[1729625160445,0.000866,67550.0,67538.0,0.005]
[1729625160677,0.000866,67550.0,67539.0,0.296125]
[1729625160909,0.000866,67550.0,67545.0,0.148048]
[1729625161379,0.000866,67550.0,67543.0,0.148053]
[1729625161626,0.000866,67550.0,67543.0,0.296106]
[1729625161851,0.000866,67550.0,67544.0,0.296103]
[1729625162078,0.000866,67550.0,67546.0,0.148045]
[1729625162316,0.000866,67550.0,67543.0,0.296106]
[1729625162317,0.000866,67550.0,67547.0,0.148043]
[1729625162996,0.000866,67550.0,67546.0,0.148045]
[1729625163219,0.000866,67550.0,67538.0,0.005]
[1729625163443,0.000866,67550.0,67544.0,0.296101]
[1729625163687,0.000866,67550.0,67548.0,0.148041]
[1729625164364,0.000866,67550.0,67545.0,0.148049]
[1729625164586,0.000866,67550.0,67544.0,0.296101]
[1729625164813,0.000866,67550.0,67548.0,0.148042]
[1729625165281,0.000866,67550.0,67546.0,0.296094]
[1729625165282,0.000866,67550.0,67549.0,0.14804]
[1729625165524,0.000866,67550.0,67546.0,0.296094]
[1729625165735,0.000866,67550.0,67549.0,0.14804]
[1729625166709,0.000866,67550.0,67547.0,0.29609]
[1729625166928,0.000866,67550.0,67549.0,0.14804]
[1729625168069,0.000866,67550.0,67547.0,0.296087]
[1729625168297,0.000866,67550.0,67549.0,0.14804]
[1729625170170,0.000866,67550.0,67537.0,0.005]
[1729625170390,0.01695378,67549.0,67544.0,0.296101]
[1729625170623,0.000866,67550.0,67544.0,0.296101]
[1729625170838,0.000866,67550.0,67546.0,0.148045]
[1729625171308,0.000866,67550.0,67548.0,0.148042]
[1729625172473,0.000866,67550.0,67544.0,0.296101]
[1729625172710,0.000866,67550.0,67547.0,0.148044]
[1729625173180,0.000866,67550.0,67544.0,0.296101]
[1729625173181,0.000866,67550.0,67548.0,0.148042]
[1729625176340,0.000866,67550.0,67549.0,0.14804]
[1729625176997,0.000866,67550.0,67541.0,0.296116]
[1729625177218,0.000866,67550.0,67548.0,0.148041]
[1729625177429,0.000866,67550.0,67541.0,0.296116]
[1729625177430,0.000866,67550.0,67549.0,0.14804]
[1729625178270,0.000866,67550.0,67539.0,0.296124]
[1729625178506,0.000866,67550.0,67549.0,0.14804]
[1729625180125,0.000866,67550.0,67549.0,0.20418131]
[1729625180351,0.000866,67550.0,67549.0,0.15600058]
[1729625182978,0.000866,67550.0,67549.0,0.15800058]
[1729625183216,0.000839,67560.0,67549.0,0.01895107]
[1729625183444,0.000839,67560.0,67559.0,0.148018]
[1729625184640,0.000839,67560.0,67559.0,0.153018]
[1729625184855,0.000839,67560.0,67559.0,0.16403174]
[1729625185742,0.000839,67560.0,67559.0,0.16603174]
[1729625185998,0.000839,67560.0,67559.0,0.155018]
[1729625186221,0.000839,67560.0,67559.0,0.1660305]
[1729625188248,0.000839,67560.0,67559.0,0.17704263]
[1729625188491,0.000839,67560.0,67559.0,0.17504263]
[1729625189600,0.000839,67560.0,67559.0,0.1640305]
[1729625190292,0.000839,67560.0,67559.0,0.17504219]
[1729625191884,0.000839,67560.0,67559.0,0.17704219]
[1729625193281,0.000839,67560.0,67559.0,0.1660305]
[1729625194908,0.000839,67560.0,67559.0,0.1640305]
[1729625200470,0.000839,67560.0,67559.0,0.153018]
[1729625204547,0.11683384,67560.0,67557.0,0.296046]
[1729625204779,0.11683384,67560.0,67554.0,0.01]
[1729625204780,0.02328287,67559.0,67555.0,0.148027]
[1729625205055,0.02328287,67559.0,67552.0,0.296068]
[1729625205286,0.000839,67560.0,67550.0,0.006652]
[1729625205287,0.11599484,67556.0,67555.0,0.148027]
[1729625205502,0.00719478,67558.0,67557.0,0.148023]
[1729625205731,0.11599484,67559.0,67557.0,0.148023]
[1729625205979,0.11599484,67559.0,67557.0,0.148021]
[1729625206195,0.11599484,67559.0,67556.0,0.296048]
[1729625206447,0.11599484,67559.0,67558.0,0.14802]
[1729625210831,0.11599484,67559.0,67555.0,0.296055]
[1729625211046,0.000839,67560.0,67555.0,0.296055]
[1729625211047,0.11599484,67556.0,67555.0,0.296055]
[1729625211268,0.11599484,67556.0,67555.0,0.444082]
[1729625213798,0.12331159,67556.0,67555.0,0.444082]
[1729625215131,0.11682084,67559.0,67558.0,0.14802]
[1729625215815,0.12414206,67559.0,67558.0,0.14802]
[1729625216716,0.00814722,67559.0,67558.0,0.15302]
[1729625217200,0.000826,67559.0,67558.0,0.1559802]
[1729625217690,0.000826,67559.0,67558.0,0.1659802]
[1729625218853,0.000826,67559.0,67558.0,0.31693935]
[1729625219079,0.000826,67559.0,67558.0,0.31397915]
[1729625222116,0.000826,67559.0,67558.0,0.31197915]
[1729625222330,0.000826,67559.0,67558.0,0.31397915]
[1729625226333,0.000826,67559.0,67558.0,0.31197915]
[1729625229044,0.000826,67559.0,67558.0,0.16302]
[1729625229785,0.000826,67559.0,67558.0,0.15302]
[1729625230023,0.000826,67559.0,67550.0,0.001652]
[1729625230024,0.30318682,67559.0,67550.0,0.006652]
[1729625230257,0.30318682,67559.0,67550.0,0.001652]
[1729625230258,0.11599484,67551.0,67550.0,0.001652]
[1729625230512,0.11599484,67551.0,67550.0,0.14969]
[1729625230742,0.12364724,67551.0,67550.0,0.14969]
[1729625231000,0.11599484,67551.0,67550.0,0.15469]
[1729625231235,0.12364724,67551.0,67550.0,0.15469]
[1729625231488,0.12364724,67551.0,67550.0,0.001652]
[1729625231729,0.11599484,67551.0,67550.0,0.001652]
[1729625232202,0.11599484,67551.0,67550.0,0.14969]
[1729625232203,0.12364724,67551.0,67550.0,0.14969]
[1729625232435,0.02716732,67551.0,67550.0,0.14969]
[1729625232696,0.02716732,67551.0,67550.0,0.001652]
[1729625232925,0.0076524,67551.0,67550.0,0.001652]
[1729625233177,0.0076524,67551.0,67550.0,0.14969]
[1729625233449,0.16843304,67553.0,67550.0,0.14969]
[1729625233699,0.00759888,67551.0,67550.0,0.14969]
[1729625233932,0.25604179,67551.0,67550.0,0.001652]
[1729625234172,0.08320299,67551.0,67550.0,0.001652]
[1729625236079,0.23123899,67551.0,67550.0,0.001652]
[1729625236305,0.32203899,67551.0,67550.0,0.001652]
[1729625237033,0.47099814,67551.0,67550.0,0.001652]
[1729625237330,0.63942028,67551.0,67550.0,0.001652]
[1729625237812,5.68942028,67551.0,67550.0,0.001652]
[1729625239641,4.06042028,67551.0,67550.0,0.001652]
[1729625240941,4.08343118,67551.0,67550.0,0.001652]
[1729625243480,3.91499814,67551.0,67550.0,0.001652]
[1729625243976,4.08343118,67551.0,67550.0,0.001652]
[1729625246109,0.00760299,67551.0,67550.0,0.001652]
[1729625246582,0.16843304,67552.0,67550.0,0.001652]
[1729625246819,0.00752002,67551.0,67550.0,0.001652]
[1729625247292,0.15555602,67551.0,67550.0,0.001652]
[1729625247531,0.44084862,67551.0,67550.0,0.001652]
[1729625248746,0.44167462,67551.0,67550.0,0.001652]
[1729625252828,0.30534117,67551.0,67550.0,0.001652]
[1729625254319,0.53752199,67551.0,67550.0,0.001652]
[1729625254752,0.42143158,67551.0,67550.0,0.001652]
[1729625260505,0.53752199,67551.0,67550.0,0.001652]
[1729625266612,0.58373913,67551.0,67550.0,0.001652]
[1729625266846,0.53752199,67551.0,67550.0,0.001652]
[1729625267553,0.58373935,67551.0,67550.0,0.001652]
[1729625274986,0.70941275,67551.0,67550.0,0.001652]
[1729625275450,0.17065379,67551.0,67550.0,0.001652]
[1729625279300,0.05456338,67551.0,67550.0,0.14969]
[1729625279739,0.000826,67551.0,67550.0,0.14969]
[1729625297117,0.000826,67551.0,67550.0,0.15469]
[1729625305567,0.11609041,67554.0,67550.0,0.15469]
[1729625305568,0.06691641,67554.0,67553.0,0.148031]
[1729625305791,0.07377611,67554.0,67553.0,0.148031]
[1729625307600,0.07460211,67554.0,67553.0,0.148031]
[1729625312549,0.0745987,67554.0,67553.0,0.148031]
[1729625316662,0.0745987,67554.0,67550.0,0.302724]
[1729625316870,0.1537987,67554.0,67551.0,0.148036]
[1729625317077,0.1537987,67554.0,67552.0,0.148033]
[1729625317770,0.1537987,67554.0,67553.0,0.148031]
[1729625320454,0.1537987,67554.0,67552.0,0.148032]
[1729625320663,0.1537987,67554.0,67550.0,0.297726]
[1729625320875,0.1537987,67554.0,67552.0,0.148032]
[1729625321380,0.1537987,67554.0,67553.0,0.148031]
[1729625330794,0.1537987,67554.0,67553.0,0.149683]
[1729625331223,0.0745987,67554.0,67553.0,0.149683]
[1729625332494,0.0745987,67554.0,67553.0,0.001652]
[1729625332715,0.0745987,67554.0,67553.0,0.149683]
[1729625334664,0.00768229,67554.0,67553.0,0.149683]
[1729625344722,0.000826,67554.0,67553.0,0.149683]
[1729625345165,0.00764101,67554.0,67553.0,0.149683]
[1729625345388,0.000826,67554.0,67553.0,0.149683]
[1729625345823,0.00764101,67554.0,67553.0,0.149683]
[1729625346034,0.000826,67554.0,67553.0,0.149683]
[1729625346234,0.00757922,67554.0,67553.0,0.149683]
[1729625346472,0.000826,67554.0,67553.0,0.149683]
[1729625347117,0.00757922,67554.0,67553.0,0.149683]
[1729625347606,0.000839,67592.0,67567.0,0.321401]
[1729625347846,0.22266425,67576.0,67567.0,0.44249141]
[1729625348101,0.22266425,67576.0,67567.0,0.45449141]
[1729625348319,0.22266425,67583.0,67567.0,0.45449141]
[1729625349007,0.22266425,67583.0,67567.0,0.6829707]
[1729625349461,0.22266425,67583.0,67567.0,0.72695411]
[1729625349684,0.22266425,67583.0,67567.0,0.71345056]
[1729625352178,0.22266425,67583.0,67567.0,0.70145056]
[1729625352387,0.22266425,67583.0,67567.0,0.60985056]
[1729625352596,0.22266425,67583.0,67567.0,0.60485056]
[1729625353006,0.22266425,67583.0,67567.0,0.60985056]
[1729625353438,0.22266425,67583.0,67567.0,0.61185056]
[1729625353658,0.11609041,67578.0,67567.0,0.41196015]
[1729625353872,0.0806,67577.0,67567.0,0.163001]
[1729625354090,0.11692941,67574.0,67567.0,0.163001]
[1729625354320,0.000839,67574.0,67567.0,0.163001]
[1729625358990,0.000839,67574.0,67567.0,0.27909141]
[1729625362457,0.00055319,67574.0,67572.0,0.01]
[1729625362675,0.00055319,67574.0,67573.0,0.147988]
[1729625365687,0.00055319,67574.0,67573.0,0.152988]
[1729625371147,0.00055319,67574.0,67573.0,0.147988]
[1729625371405,0.00055319,67574.0,67570.0,0.295988]
[1729625371406,0.17195319,67574.0,67562.0,0.005]
[1729625371641,0.11609041,67563.0,67556.0,0.22766425]
[1729625371903,0.11609041,67566.0,67563.0,0.148008]
[1729625372399,0.0797,67565.0,67563.0,0.148008]
[1729625372628,0.0797,67565.0,67558.0,0.301041]
[1729625372629,0.0797,67565.0,67560.0,0.296033]
[1729625372859,0.0797,67565.0,67562.0,0.14801]
[1729625374499,0.0797,67565.0,67561.0,0.296028]
[1729625374727,0.0797,67565.0,67563.0,0.148009]
[1729625377894,0.0797,67565.0,67561.0,0.296028]
[1729625378107,0.0797,67565.0,67563.0,0.148009]
[1729625379247,0.0797,67565.0,67562.0,0.296024]
[1729625379463,0.0797,67565.0,67560.0,0.005]
[1729625379464,0.000826,67568.0,67567.0,0.148001]
[1729625381428,0.000826,67568.0,67567.0,0.26909141]
[1729625383841,0.07607919,67577.0,67568.0,0.295998]
[1729625384053,0.07607919,67577.0,67573.0,0.147986]
[1729625386254,9e-05,67580.0,67579.0,0.147974]
[1729625386485,9e-05,67580.0,67576.0,0.14798]
[1729625386696,9e-05,67580.0,67579.0,0.147974]
[1729625386916,9e-05,67580.0,67576.0,0.295963]
[1729625387134,9e-05,67580.0,67579.0,0.147974]
[1729625387350,9e-05,67580.0,67576.0,0.443944]
[1729625387566,9e-05,67580.0,67578.0,0.147974]
[1729625387782,9e-05,67580.0,67576.0,0.295963]
[1729625387992,9e-05,67580.0,67579.0,0.147974]
[1729625389021,9e-05,67580.0,67576.0,0.295963]
[1729625389239,9e-05,67580.0,67578.0,0.147976]
[1729625389442,9e-05,67580.0,67576.0,0.295963]
[1729625389443,9e-05,67580.0,67579.0,0.147974]
[1729625391012,9e-05,67580.0,67578.0,0.147976]
[1729625395414,0.11618041,67580.0,67573.0,0.005]
[1729625395706,0.11618041,67580.0,67576.0,0.147981]
[1729625395955,0.11618041,67580.0,67573.0,0.005]
[1729625396218,0.11618041,67580.0,67576.0,0.14798]
[1729625396898,0.11618041,67580.0,67575.0,0.295967]
[1729625397133,0.11618041,67580.0,67576.0,0.14798]
[1729625397363,0.11618041,67580.0,67573.0,0.005]
[1729625397364,0.147975,67579.0,67573.0,0.005]
[1729625397573,0.095,67578.0,67573.0,0.147987]
[1729625397885,0.11609041,67577.0,67572.0,0.14799]
[1729625397935,0.11609041,67577.0,67573.0,0.147987]
[1729625398839,0.11609041,67577.0,67571.0,0.310984]
[1729625399038,0.11609041,67577.0,67574.0,0.147985]
[1729625399673,0.11609041,67577.0,67573.0,0.295974]
[1729625399674,0.11609041,67577.0,67575.0,0.147983]
[1729625401169,0.095,67578.0,67575.0,0.147983]
[1729625402295,0.095,67578.0,67573.0,0.295974]
[1729625402509,0.11609041,67576.0,67572.0,0.001652]
[1729625403364,0.11609041,67576.0,67572.0,0.149641]
[1729625404002,0.11609041,67576.0,67573.0,0.147987]
[1729625404182,0.095,67578.0,67574.0,0.147985]
[1729625404646,0.095,67578.0,67573.0,0.147988]
[1729625404826,0.095,67578.0,67574.0,0.147984]
[1729625405071,0.095,67578.0,67573.0,0.295976]
[1729625405284,0.095,67578.0,67576.0,0.147981]
[1729625405499,0.095,67578.0,67574.0,0.295971]
[1729625405737,0.095,67578.0,67576.0,0.14798]
[1729625407468,0.11700641,67580.0,67577.0,0.147977]
[1729625407687,0.000916,67580.0,67577.0,0.147977]
[1729625407965,0.000916,67580.0,67579.0,0.147974]
[1729625408617,0.095916,67580.0,67573.0,0.005]
[1729625408832,0.11609041,67576.0,67573.0,0.005]
[1729625409050,0.11609041,67576.0,67573.0,0.152987]
[1729625409257,0.11609041,67576.0,67574.0,0.147984]
[1729625409685,0.11609041,67576.0,67574.0,0.147985]
[1729625409891,0.11609041,67576.0,67573.0,0.005]
[1729625410095,0.11609041,67576.0,67574.0,0.147985]
[1729625410562,0.11609041,67576.0,67573.0,0.152987]
[1729625410783,0.11609041,67576.0,67574.0,0.147985]
[1729625410982,0.11609041,67576.0,67573.0,0.005]
[1729625411181,0.11609041,67576.0,67574.0,0.147984]
[1729625411717,0.11609041,67576.0,67574.0,0.149636]
[1729625414352,0.11609041,67576.0,67574.0,0.001652]
[1729625414768,0.11609041,67576.0,67574.0,0.149636]
[1729625414982,0.11609041,67576.0,67575.0,0.147983]
[1729625415625,0.11609041,67579.0,67575.0,0.147983]
[1729625415847,0.04623685,67578.0,67575.0,0.147983]
[1729625417045,0.04623685,67578.0,67574.0,0.001652]
[1729625417728,0.04623685,67578.0,67574.0,0.149636]
[1729625418494,0.04623685,67578.0,67574.0,0.001652]
[1729625418696,0.11609041,67576.0,67574.0,0.001652]
[1729625420622,0.19369041,67576.0,67574.0,0.001652]
[1729625421772,0.04625035,67575.0,67574.0,0.001652]
[1729625424443,0.000916,67580.0,67579.0,0.033]
[1729625424763,1e-06,67580.0,67579.0,1.04769541]
[1729625424995,0.22479227,67600.0,67591.0,0.341348]
[1729625425264,0.22479227,67600.0,67591.0,0.60639756]
[1729625425515,0.00212802,67600.0,67591.0,0.60639756]
[1729625426062,0.00212802,67600.0,67591.0,0.82248797]
[1729625426272,0.00212802,67600.0,67591.0,0.88861389]
[1729625426505,0.00212802,67600.0,67599.0,0.33103419]
[1729625426738,0.00212802,67600.0,67599.0,0.47999334]
[1729625428412,0.00212802,67600.0,67599.0,0.31189015]
[1729625430556,0.00212802,67600.0,67599.0,0.162931]
[1729625430833,0.00212802,67600.0,67599.0,0.16588928]
[1729625431283,0.00212802,67600.0,67599.0,0.31484843]
[1729625431521,0.00212802,67600.0,67599.0,0.31189015]
[1729625432718,0.00212802,67600.0,67599.0,0.47999334]
[1729625432949,0.00212802,67600.0,67599.0,0.31189015]
[1729625436662,0.00212802,67600.0,67599.0,0.162931]
[1729625437104,0.00212802,67600.0,67599.0,0.16588932]
[1729625437323,0.00212802,67600.0,67599.0,0.16588928]
[1729625438491,0.00212802,67600.0,67599.0,0.15088928]
[1729625438718,0.00212802,67600.0,67596.0,0.295875]
[1729625438719,0.0786,67599.0,67596.0,0.295875]
[1729625438947,0.24670319,67599.0,67598.0,0.152933]
[1729625439176,0.0786,67599.0,67598.0,0.152933]
[1729625439400,0.00212802,67600.0,67598.0,0.005]
[1729625439637,0.00212802,67600.0,67599.0,0.147931]
[1729625440100,0.00212802,67600.0,67597.0,0.005]
[1729625440333,0.00212802,67600.0,67564.0,0.33240292]
[1729625440334,0.14895915,67599.0,67592.0,0.001652]
[1729625440599,0.31604719,67593.0,67592.0,0.001652]
[1729625440818,5.63750634,67593.0,67592.0,0.001652]
[1729625441055,5.78646549,67593.0,67592.0,0.001652]
[1729625443049,5.63750634,67593.0,67592.0,0.001652]
[1729625443241,0.70350634,67593.0,67592.0,0.001652]
[1729625443528,0.58750634,67593.0,67592.0,0.001652]
[1729625448760,0.56450634,67593.0,67592.0,0.001652]
[1729625450771,0.29690315,67593.0,67592.0,0.001652]
[1729625450988,0.46500634,67593.0,67592.0,0.001652]
[1729625451918,0.56288245,67593.0,67592.0,0.001652]
[1729625452145,0.65568245,67593.0,67592.0,0.001652]
[1729625452379,0.65568245,67593.0,67578.0,0.22266425]
[1729625452380,0.69884164,67593.0,67578.0,0.22266425]
[1729625452612,0.231174,67579.0,67578.0,0.22266425]
[1729625452855,0.47293315,67579.0,67578.0,0.22266425]
[1729625453084,0.147983,67575.0,67574.0,0.001652]
[1729625453308,0.31608619,67575.0,67574.0,0.001652]
[1729625456549,0.16810319,67575.0,67574.0,0.001652]
[1729625456763,0.31608619,67575.0,67574.0,0.001652]
[1729625457005,0.11810319,67575.0,67574.0,0.001652]
[1729625460127,0.17430611,67575.0,67574.0,0.001652]
[1729625460582,0.32228911,67575.0,67574.0,0.001652]
[1729625461473,0.26608619,67575.0,67574.0,0.001652]
[1729625461934,0.36058619,67575.0,67574.0,0.001652]
[1729625462154,0.44158619,67575.0,67574.0,0.001652]
[1729625462410,0.59054534,67575.0,67574.0,0.001652]
[1729625462652,0.170988,67573.0,67572.0,0.001652]
[1729625462902,0.170988,67573.0,67559.0,0.001652]
[1729625462903,0.148003,67566.0,67559.0,0.001652]
[1729625463126,0.148003,67566.0,67556.0,0.22266425]
[1729625463127,0.023,67560.0,67556.0,0.22266425]
[1729625463355,0.023,67560.0,67548.0,0.0075]
[1729625463356,0.171029,67554.0,67548.0,0.0075]
[1729625463590,5.221029,67554.0,67548.0,0.0075]
[1729625463825,5.397929,67554.0,67548.0,0.0075]
[1729625464067,0.271036,67551.0,67548.0,0.0075]
[1729625464298,5.321036,67551.0,67548.0,0.0075]
[1729625464522,5.49563844,67551.0,67548.0,0.0075]
[1729625464745,5.65724238,67551.0,67548.0,0.0075]
[1729625465221,3.14213919,67551.0,67548.0,0.0075]
[1729625465665,0.43913919,67551.0,67548.0,0.0075]
[1729625465886,3.76713919,67551.0,67548.0,0.0075]
[1729625467395,3.93524238,67551.0,67548.0,0.0075]
[1729625467632,4.23316068,67551.0,67548.0,0.0075]
[1729625469078,0.04397671,67587.0,67561.0,0.163315]
[1729625469293,0.000826,67593.0,67584.0,0.005]
[1729625469502,0.31606519,67585.0,67567.0,0.005]
[1729625469714,0.295907,67589.0,67551.0,0.11]
[1729625469715,0.16810319,67571.0,67566.0,0.148002]
[1729625469932,0.31607619,67580.0,67564.0,0.005]
[1729625469933,0.16810319,67580.0,67565.0,0.296011]
[1729625470144,0.16810319,67580.0,67562.0,0.01]
[1729625470145,0.16810319,67570.0,67562.0,0.015]
[1729625470372,0.16810319,67570.0,67563.0,0.005]
[1729625470577,0.16810319,67570.0,67569.0,0.147996]
[1729625471427,0.88822437,67578.0,67568.0,0.295997]
[1729625471428,0.16810319,67574.0,67573.0,0.147988]
[1729625471847,0.88822437,67578.0,67569.0,0.005]
[1729625472064,0.88822437,67585.0,67580.0,0.147972]
[1729625472474,0.88822437,67585.0,67575.0,0.295963]
[1729625472475,0.88822437,67585.0,67577.0,0.295958]
[1729625472695,0.88822437,67585.0,67584.0,0.147964]
[1729625473557,0.88822437,67585.0,67574.0,0.29597]
[1729625473778,0.16810319,67583.0,67574.0,0.29597]
[1729625474006,0.16810319,67583.0,67579.0,0.147973]
[1729625474261,0.16810319,67583.0,67574.0,0.739927]
[1729625474485,0.16810319,67583.0,67573.0,0.005]
[1729625475358,0.16810319,67575.0,67571.0,0.147991]
[1729625475594,0.16810319,67575.0,67567.0,0.296002]
[1729625475810,0.16810319,67575.0,67567.0,0.301002]
[1729625476037,0.16810319,67575.0,67553.0,0.301061]
[1729625476038,0.16810319,67570.0,67557.0,0.005]
[1729625476257,0.16810319,67570.0,67564.0,0.296015]
[1729625476258,0.01643113,67569.0,67564.0,0.296015]
[1729625476684,0.22196409,67568.0,67564.0,0.296015]
[1729625476909,0.22196409,67568.0,67567.0,0.148001]
[1729625479288,0.16810319,67573.0,67570.0,0.147994]
[1729625479524,1.692402,67572.0,67569.0,0.16810319]
[1729625479741,0.00212802,67600.0,67563.0,0.006652]
[1729625479742,0.22196409,67598.0,67592.0,0.147946]
[1729625479956,0.22196409,67598.0,67592.0,0.33104919]
[1729625480447,0.22196409,67598.0,67592.0,0.33304919]
[1729625481100,0.22196409,67598.0,67592.0,0.162946]
[1729625481312,0.22196409,67598.0,67592.0,0.33104919]
[1729625482383,0.22196409,67598.0,67592.0,0.162946]
[1729625494379,0.22196409,67598.0,67589.0,0.015]
[1729625494590,0.22196409,67598.0,67589.0,0.152952]